{"text_format":"3","workbook":"xlsx","n_sheets":3,"sheets":["DEKRA Certification","Feuil2","Feuil3"],"not_rendered":{"defined_names":1},"read":"whole","date_system":"1900"}

{"sheet":"DEKRA Certification","index":0,"n_rows":19,"n_cols":28,"rows_kept":19,"merged":[[0,1,0,2],[1,1,1,2],[1,4,1,20],[2,1,2,2],[2,4,3,20],[5,1,5,2],[5,4,5,5],[5,7,5,8],[5,10,5,11],[5,13,5,14],[5,16,5,17],[5,19,5,20],[7,24,7,25],[8,1,8,2],[8,4,8,5],[8,7,8,8],[8,10,8,11],[8,13,8,14],[8,16,8,17],[8,19,10,20],[9,1,9,2],[9,4,9,5],[9,7,9,8],[9,10,9,11],[9,13,9,14],[9,16,9,17],[10,1,10,2],[10,4,10,5],[10,7,10,8],[10,10,10,11],[10,13,10,14],[10,16,10,17],[18,0,18,17]]}
["Sélectionner votre certification DPE\nAvec ou sans mention",{"$nulls":21},"date","2024-06-30",null,null,"Date du jour",{"$f":"TODAY()","v":"2024-06-28"}]
[{"$f":"IF(B1=\"\",\"\",\"Saisir la date de début de votre cycle de certification\")","v":""},{"$nulls":3},{"$f":"IF(OR(B2=\"\",B2>AB1),\"\",CONCATENATE(\"Vous êtes actuellement dans l'année \",\" \",AB3,\" \",\"de votre cycle de certification.\"))","v":""},{"$nulls":18},"Certification initiale DPE sans mention",null,null,"Année du certifié",{"$f":"((AB1-B2)+1)/365.25","v":124.49555099247091}]
[{"$f":"IF(B2=\"\",\"\",\"Date de fin de mon cycle\")","v":""},{"$f":"IF(B2=\"\",\"\",(DATE(YEAR(B2)+7,MONTH(B2),DAY(B2)-1)))","v":""},null,null,{"$f":"IF(OR(B2=\"\",B2>AB1),\"\",X7&\" \"&TEXT(Y9,\"jj-mm-aa\"))","v":""},{"$nulls":18},"Certification initiale DPE avec mention",null,null,"Arrondi ",{"$f":"ROUNDUP(AB2,0)","v":125}]
[{"$nulls":23},"Recertification DPE sans mention"]
[{"$nulls":23},"Recertification DPE avec mention"]
[null,"Année 1",null,null,"Année 2",null,null,"Année 3",null,null,"Année 4",null,null,"Année 5",null,null,"Année 6",null,null,"Année 7"]
[null,"début","fin",null,"début","fin",null,"début","fin",null,"début","fin",null,"début","fin",null,"début","fin",null,"début","fin",null,null,"Vous devrez répondre aux exigences de l'année en cours mentonnées dans le tableau ci-dessous au plus tard le"]
[null,{"$f":"IF(OR(B2=\"\",B2>AB1),\"\",B2)","v":""},{"$f":"IF(OR(B2=\"\",B2>AB1),\"\",DATE(YEAR($B$8)+1,MONTH($B$2),DAY($B$2)-1))","v":""},null,{"$f":"IF(OR(B2=\"\",B2>AB1),\"\",DATE(YEAR($B$8)+1,MONTH($B$2),DAY($B$2)))","v":""},{"$f":"IF(OR(B2=\"\",B2>AB1),\"\",(DATE(YEAR($B$8)+2,MONTH($B$2),DAY($B$2)-1)))","v":""},null,{"$f":"IF(OR(B2=\"\",B2>AB1),\"\",DATE(YEAR($B$8)+2,MONTH($B$2),DAY($B$2)))","v":""},{"$f":"IF(OR(B2=\"\",B2>AB1),\"\",DATE(YEAR($B$8)+3,MONTH($B$2),DAY($B$2)-1))","v":""},null,{"$f":"IF(OR(B2=\"\",B2>AB1),\"\",DATE(YEAR($B$8)+3,MONTH($B$2),DAY($B$2)))","v":""},{"$f":"IF(OR(B2=\"\",B2>AB1),\"\",DATE(YEAR($B$8)+4,MONTH($B$2),DAY($B$2)-1))","v":""},null,{"$f":"IF(OR(B2=\"\",B2>AB1),\"\",DATE(YEAR($B$8)+4,MONTH($B$2),DAY($B$2)))","v":""},{"$f":"IF(OR(B2=\"\",B2>AB1),\"\",DATE(YEAR($B$8)+5,MONTH($B$2),DAY($B$2)-1))","v":""},null,{"$f":"IF(OR(B2=\"\",B2>AB1),\"\",DATE(YEAR($B$8)+5,MONTH($B$2),DAY($B$2)))","v":""},{"$f":"IF(OR(B2=\"\",B2>AB1),\"\",DATE(YEAR($B$8)+6,MONTH($B$2),DAY($B$2)-1))","v":""},null,{"$f":"IF(OR(B2=\"\",B2>AB1),\"\",DATE(YEAR($B$8)+6,MONTH($B$2),DAY($B$2)))","v":""},{"$f":"IF(OR(B2=\"\",B2>AB1),\"\",DATE(YEAR($B$8)+7,MONTH($B$2),DAY($B$2)-1))","v":""},{"$nulls":3},{"$f":"IF(AN8=1,O13,IF(AN8=2,R13,IF(AN8=3,U13,IF(AN8=4,X13,IF(AN8=5,AA13,IF(AN8=6,AD13,\"\"))))))","v":""}]
["Contrôle sur ouvrage \nIn situ ou A postériori*",{"$f":"IF(OR(B2=\"\",B2>AB1),\"\",IF(C8>X1,\"A réaliser - Type 'in situ'\",\"non concerné\"))","v":""},{"$nulls":5},{"$f":"IF(OR(B2=\"\",B2>AB1),\"\",IF(I8>$X$1,\"A réaliser - type 'A postériori'\",\"non concerné\"))","v":""},{"$nulls":5},{"$f":"IF(OR(B2=\"\",B2>AB1),\"\",IF(O8>$X$1,\"A réaliser - type  'A postériori'\",\"non concerné\"))","v":""},{"$nulls":5},{"$f":"IF(OR(B2=\"\",B2>AB1),\"\",\"Renouvellement de la certification\")","v":""},{"$nulls":3},"Date fin de l'année en cours",{"$f":"IF(AB3=1,C8,IF(AB3=2,F8,IF(AB3=3,I8,IF(AB3=4,L8,IF(AB3=5,O8,IF(AB3=6,R8,\"\"))))))","v":""}]
["Surveillance documentaire**",{"$nulls":3},{"$f":"IF(OR(B2=\"\",B2>AB1),\"\",IF(F8>X1,\"Analyse de rapports à réaliser\",\"non concerné\"))","v":""},{"$nulls":5},{"$f":"IF(OR(B2=\"\",B2>AB1),\"\",IF(L8>$X$1,\"Analyse de rapports à réaliser\",\"non concerné\"))","v":""},{"$nulls":5},{"$f":"IF(OR(B2=\"\",B2>AB1),\"\",IF(R8>X1,\"Analyse de rapports à réaliser\",\"non concerné\"))","v":""}]
["Formation***",{"$f":"IF(OR(B2=\"\",B2>AB1),\"\",IF(AND(C8>X1,OR(B1=\"Certification initiale DPE sans mention\",B1=\"Certification initiale DPE avec mention\")),\"Formation en milieu  professionnelle à réaliser\",\"non concerné\"))","v":""},null,null,{"$f":"IF(OR(B2=\"\",B2>AB1),\"\",IF(AND(F8>$X$1,OR(B1=\"Certification initiale DPE sans mention\",B1=\"Recertification DPE sans mention\")),\"Formation de 7H à réaliser - En présentiel ou à distance\",IF(AND(F8>$X$1,OR(B1=\"Certification initiale DPE avec mention\",B1=\"Recertification DPE avec mention\")),\"Formation de 14H à réaliser - 7H module sans mention et 7H module avec mention - En présentiel ou à distance\",\"Non concerné\")))","v":""},null,null,{"$f":"IF(OR(B2=\"\",B2>AB1),\"\",IF(I8>$X$1,\"Formation de 7H - module sans mention - à réaliser - En présentiel ou à distance\",\"non concerné\"))","v":""},null,null,{"$f":"IF(OR(B2=\"\",B2>AB1),\"\",IF(L8>$X$1,\"Formation de 7H - module sans mention - à réaliser - En présentiel ou à distance\",\"non concerné\"))","v":""},null,null,{"$f":"IF(OR(B2=\"\",B2>AB1),\"\",IF(AND(O8>$X$1,OR(B1=\"Certification initiale DPE avec mention\",B1=\"Recertification DPE avec mention\")),\"Formation de 7H - module avec mention - à réaliser - En présentiel ou à distance\",\"non concerné\"))","v":""},null,null,{"$f":"IF(OR(B2=\"\",B2>AB1),\"\",IF(R8>$X$1,\"Formation de 7H - module sans mention - à réaliser - En présentiel ou à distance\",\"non concerné\"))","v":""}]
[]
["*Contrôle sur ouvrage"]
[" - In situ: Le contrôle sur ouvrage s'effectue sur un nouveau site. Le certifié n'a pas réalisé le diagnostic."]
[" - A postériori : le contrôle sur ouvrage s'effectue sur un site pour lequel le certifié a déjà réalisé le diagnostic et édité le rapport pour son client."]
[]
["**Surveillance documentaire","Avoir réaliser à minima 5 rapports sur les 12 derniers mois"]
[]
["***Formation 1ère année du cycle :  - En milieu professionnel Tutorat \nLe diagnostiqueur doit apporter la preuve à son organisme de certification qu’il a suivi, au cours des douze mois suivant sa certification initiale, une formation en milieu professionnel couvrant au minimum deux missions réelles et complètes de réalisation d’un diagnostic de performance énergétique par le diagnostiqueur, accompagné sur place par un tuteur. Dans le cadre d’une certification avec mention, l’une des deux missions réalisées porte sur le périmètre de la mention.\nLa formation se déroule sur des missions identifiées par le diagnostiqueur. \nCette formation en milieu professionnel est encadrée par un organisme de formation certifié qui organise le tutorat du diagnostiqueur par un tuteur certifié et expérimenté."]

{"sheet":"Feuil2","index":1,"n_rows":0,"n_cols":0,"rows_kept":0,"hidden":true}

{"sheet":"Feuil3","index":2,"n_rows":0,"n_cols":0,"rows_kept":0,"hidden":true}